bitfinex/quotes_ETHUSD_20250815
["timestamp","ask_amount","ask_price","bid_price","bid_amount"]
[1755268019775,24.0,4550.0,4549.9,10.31612764]
[1755268020346,24.0,4550.0,4549.9,6.29452764]
[1755268020589,24.0,4550.0,4549.9,5.1978505]
[1755268021177,24.4328,4550.0,4549.9,5.1978505]
[1755268021351,24.8956,4550.0,4548.7,2.19840679]
[1755268021677,24.8956,4550.0,4548.9,3.0]
[1755268021881,24.8956,4550.0,4549.4,2.1980569]
[1755268022083,0.4328,4549.9,4549.4,2.1980569]
[1755268022291,0.4328,4549.8,4549.4,2.19809205]
[1755268022582,24.0,4550.0,4549.9,2.1978505]
[1755268022788,24.0,4550.0,4549.9,2.3074505]
[1755268023784,14.27788248,4550.0,4549.9,6.41438767]
[1755268023983,14.27788248,4550.0,4549.9,7.30538767]
[1755268024187,8.29880221,4550.0,4549.9,7.65338767]
[1755268024369,8.29880221,4550.0,4549.9,7.10338767]
[1755268024563,8.29800221,4550.0,4549.9,6.75538767]
[1755268024961,0.002,4550.5,4550.4,2.197609]
[1755268025173,0.002,4550.5,4550.4,8.762609]
[1755268026457,0.002,4551.5,4551.4,2.19712615]
[1755268027078,0.002,4551.5,4551.4,5.19712615]
[1755268027449,0.4559,4551.5,4551.2,3.562]
[1755268027654,0.4559,4551.5,4551.2,2.19720738]
[1755268027655,0.4539,4551.4,4551.2,2.19720738]
[1755268027987,0.4539,4551.4,4356.0,100.0]
[1755268027988,0.9336,4551.3,4549.4,0.4797]
[1755268028175,0.9336,4551.3,4550.2,3.0]
[1755268028486,0.4539,4551.2,4550.3,2.19765729]
[1755268028696,0.4539,4551.2,4550.8,2.19740003]
[1755268028854,0.4539,4551.2,4550.7,3.0]
[1755268029059,0.4539,4551.2,4550.8,2.19736771]
[1755268029293,0.4539,4551.1,4550.8,2.19736771]
[1755268029475,0.4539,4551.1,4550.7,5.19745817]
[1755268029784,0.4539,4551.0,4550.8,2.19740471]
[1755268029987,0.4539,4551.0,4550.6,2.19750548]
[1755268030287,0.002,4551.5,4550.6,2.19750548]
[1755268030288,0.002,4551.5,4551.4,2.19712615]
[1755268030452,0.002,4551.5,4550.7,3.0]
[1755268030453,0.002,4551.5,4551.2,3.0]
[1755268031092,0.002,4551.5,4551.3,1.74573309]
[1755268031295,0.002,4551.5,4551.2,3.0]
[1755268031296,0.002,4551.5,4551.4,2.19712615]
[1755268032191,0.002,4551.5,4551.2,3.0]
[1755268032487,0.002,4551.5,4551.4,2.19712615]
[1755268032788,0.4539,4551.4,4551.2,0.0008]
[1755268033108,0.9336,4551.3,4551.2,0.0008]
[1755268034501,0.002,4551.5,4551.2,0.0008]
[1755268034683,0.4539,4551.4,4551.2,0.0008]
[1755268035294,0.9336,4551.3,4551.2,0.0008]
[1755268036076,1.0432,4551.3,4551.2,0.0008]
[1755268036277,3.56459827,4551.3,4551.2,0.0008]
[1755268036484,3.24037443,4551.3,4551.2,0.0008]
[1755268037008,1.0432,4551.3,4551.2,0.0008]
[1755268037180,0.4539,4551.3,4551.2,0.0008]
[1755268037378,0.002,4551.5,4551.2,0.0008]
[1755268038592,0.002,4551.5,4551.4,2.30672615]
[1755268038912,0.002,4551.5,4551.4,9.31939713]
[1755268039117,0.002,4551.5,4551.4,9.79909713]
[1755268039294,0.002,4551.5,4551.4,10.14709713]
[1755268039689,0.002,4551.5,4551.4,9.79909713]
[1755268040478,0.002,4551.5,4551.4,10.14709713]
[1755268040888,1e-08,4551.5,4551.4,10.14709713]
[1755268041216,1e-08,4551.5,4551.4,10.69709713]
[1755268041890,0.002,4552.0,4551.9,2.19688481]
[1755268042227,0.002,4552.5,4552.4,2.19664352]
[1755268042378,0.002,4552.5,4552.4,8.86624352]
[1755268042585,0.002,4552.5,4552.4,10.41165236]
[1755268042784,1e-08,4552.5,4552.4,37.67268025]
[1755268043084,1e-08,4552.5,4552.4,8.86624352]
[1755268043311,1e-08,4552.5,4552.4,9.97253936]
[1755268044284,1e-08,4552.5,4552.4,10.45223936]
[1755268044796,1e-08,4552.5,4552.4,10.61714894]
[1755268045197,1e-08,4552.5,4552.4,6.41253936]
[1755268045480,1e-08,4552.5,4552.4,8.86524352]
[1755268045718,0.93360001,4552.5,4552.4,0.1096]
[1755268048021,0.93360001,4552.5,4551.9,2.19688352]
[1755268048180,0.1096,4552.3,4551.9,2.19688352]
[1755268048722,0.9336,4552.2,4552.0,2.1968356]
[1755268048924,0.4797,4552.2,4551.9,2.19687321]
[1755268049113,0.4539,4552.1,4551.9,2.19687321]
[1755268049312,0.1096,4552.3,4552.2,2.19674003]
[1755268049518,1e-08,4552.5,4552.0,5.30643655]
[1755268049825,0.4539,4552.4,4552.1,2.19678829]
[1755268049983,0.4539,4552.3,4552.2,2.19673181]
[1755268050389,0.4539,4552.3,4552.2,2.30633181]
[1755268050639,0.4539,4552.3,4552.2,0.1096]
[1755268050917,0.9336,4552.3,4552.2,0.1096]
[1755268051118,0.9336,4552.3,4552.2,2.30634003]
[1755268051622,0.4539,4552.3,4552.2,2.30634003]
[1755268051922,1e-08,4552.5,4552.3,2.19669178]
[1755268052124,1e-08,4552.5,4552.4,2.19664352]
[1755268052429,1e-08,4552.5,4552.4,2.30624352]
[1755268052651,1e-08,4552.5,4552.4,5.80790995]
[1755268052921,1e-08,4552.5,4552.4,6.84729842]
[1755268053437,1e-08,4552.5,4552.4,9.02859842]
[1755268053600,1e-08,4552.5,4552.4,10.19616149]
[1755268053937,1e-08,4552.5,4552.4,6.47460659]
[1755268054221,1e-08,4552.5,4552.4,10.03360659]
[1755268054520,1e-08,4552.5,4552.4,8.86604352]
[1755268055291,0.45390001,4552.5,4552.4,8.86604352]
[1755268055807,1e-08,4552.5,4552.4,8.86604352]
[1755268056211,0.002,4553.0,4552.9,2.19640229]
[1755268056520,0.002,4553.0,4552.9,5.86500229]
[1755268056723,0.002,4553.0,4552.9,3.11214966]
[1755268056933,0.002,4553.0,4552.9,6.67114966]
[1755268057802,0.0012,4553.3,4553.2,2.19625757]
[1755268058151,0.002,4553.5,4553.4,2.19616111]
[1755268058433,0.002,4553.5,4553.4,8.86550097]
[1755268058634,0.002,4553.5,4553.4,8.97510097]
[1755268059210,0.002,4553.5,4553.4,9.45820097]
[1755268059612,0.002,4553.7,4553.5,5.19611288]
[1755268059821,0.002,4553.7,4553.5,6.31212761]
[1755268060420,0.002,4553.7,4553.5,6.66012761]
[1755268060739,0.002,4553.7,4553.5,6.31212761]
[1755268061039,0.002,4553.7,4553.5,5.82902761]
[1755268061339,0.002,4553.7,4553.5,9.38702761]
[1755268061842,0.002,4553.7,4553.5,9.87012761]
[1755268062042,0.0012,4553.6,4553.5,9.87012761]
[1755268062429,0.0012,4553.6,4553.5,9.38702761]
[1755268062627,0.0012,4553.6,4553.5,9.87012761]
[1755268063841,0.0012,4553.6,4553.5,9.38702761]
[1755268064026,0.0012,4553.6,4553.5,8.75311288]
[1755268064929,0.4576,4553.6,4553.5,5.19611288]
[1755268066144,0.0012,4553.6,4553.5,5.19611288]
[1755268066836,0.0004,4553.6,4553.5,5.19611288]
[1755268067514,0.4568,4553.6,4553.5,8.75311288]
[1755268067850,0.9623,4553.6,4553.5,8.75311288]
[1755268068211,0.9623,4553.6,4553.5,5.19611288]
[1755268069044,0.9623,4553.6,4553.4,0.1096]
[1755268069246,0.9619,4553.5,4552.9,2.19635812]
[1755268069445,0.9619,4553.4,4553.0,0.1096]
[1755268069648,0.9619,4553.3,4552.4,0.0008]
[1755268070150,2.1963738,4553.0,4552.4,0.0008]
[1755268070353,0.31582738,4552.9,4552.4,0.0008]
[1755268070552,0.1096,4552.7,4552.4,0.0008]
[1755268070924,0.9619,4552.6,4552.4,0.0008]
[1755268071413,0.5055,4552.6,4552.4,0.0008]
[1755268071610,0.4564,4552.5,4552.4,0.0008]
[1755268071815,0.9619,4552.5,4552.4,0.0008]
[1755268072852,3.15849527,4552.5,4552.4,0.0008]
[1755268073051,3.7049572,4552.5,4552.4,0.0008]
[1755268074121,7.7049572,4552.5,4552.4,0.0008]
[1755268075358,5.0715,4552.5,4552.4,0.0008]
[1755268075674,7.26809527,4552.5,4552.4,0.0008]
[1755268075955,5.0715,4552.5,4552.4,0.0008]
[1755268076322,4.566,4552.5,4552.4,0.0008]
[1755268076949,0.566,4552.5,4552.4,0.0008]
[1755268077359,3.26809527,4552.5,4552.4,0.0008]
[1755268077559,3.81455732,4552.5,4552.4,0.0008]
[1755268078180,2.74674003,4552.2,4552.1,0.001]
[1755268078361,0.55,4552.2,4551.1,0.001]
[1755268078565,2.30682271,4551.2,4551.1,0.001]
[1755268078749,6.31422029,4551.2,4551.1,0.001]
[1755268078931,7.27612029,4551.2,4551.1,0.001]
[1755268079955,1.0715,4551.2,4551.1,0.001]
[1755268080170,0.566,4551.2,4551.1,0.001]
[1755268080347,3.26872271,4551.2,4551.1,0.001]
[1755268081847,3.81872271,4551.2,4551.1,0.001]
[1755268082146,7.81872271,4551.2,4551.1,0.001]
[1755268082349,9.1759077,4551.2,4551.1,0.001]
[1755268082845,8.6259077,4551.2,4551.1,0.001]
[1755268083046,10.32022271,4551.2,4551.1,0.001]
[1755268083263,7.6666,4551.2,4551.1,0.001]
[1755268083458,4.1096,4551.2,4551.1,0.001]
[1755268083664,6.76322271,4551.2,4551.1,0.001]
[1755268084578,4.1096,4551.2,4551.1,0.001]
[1755268084777,4.0,4551.2,4551.1,2.19827098]
[1755268085092,4.0,4551.2,4551.1,2.41809808]
[1755268085252,4.0,4551.2,4551.1,0.2208271]
[1755268085455,3.557,4551.6,4551.1,0.2208271]
[1755268085758,3.26872271,4551.2,4551.1,0.001]
[1755268086066,7.26872271,4551.2,4551.1,0.001]
[1755268087281,7.81872271,4551.2,4551.1,0.001]
[1755268087453,8.82031026,4551.2,4551.1,0.001]
[1755268087655,12.37731026,4551.2,4551.1,0.001]
[1755268089670,12.37631026,4551.2,4551.1,0.001]
[1755268090272,11.82731026,4551.2,4551.1,0.001]
[1755268090489,7.30841026,4551.2,4551.1,0.001]
[1755268090670,7.6666,4551.2,4551.1,0.001]
[1755268090869,4.1096,4551.2,4551.1,0.001]
[1755268091076,7.6666,4551.2,4551.1,0.001]
[1755268091980,3.6656,4551.2,4551.1,0.001]
[1755268093100,7.46950366,4553.6,4551.1,0.001]
[1755268093399,0.1096,4551.7,4551.1,0.4541]
[1755268093715,2.19707788,4551.5,4551.1,0.001]
[1755268094120,2.75798715,4551.7,4551.1,0.001]
[1755268094315,0.1096,4551.3,4551.1,0.001]
[1755268094759,0.1096,4552.0,4551.2,0.9125]
[1755268094965,3.556,4551.9,4551.7,2.19696867]
[1755268095194,3.556,4552.0,4551.8,0.4531]
[1755268095359,0.002,4552.1,4551.6,0.1096]
[1755268095587,0.002,4552.1,4551.7,0.47506981]
[1755268095891,0.002,4552.1,4552.0,0.1096]
[1755268096096,0.002,4552.1,4551.6,2.19698733]
[1755268096317,0.002,4552.1,4551.7,2.3065672]
[1755268096531,0.002,4552.1,4551.8,2.19692799]
[1755268096660,0.002,4552.1,4551.7,0.1096]
[1755268096993,2.19693083,4551.9,4551.1,2.19825922]
[1755268097184,3.556,4551.8,4551.2,0.1096]
[1755268097370,0.1096,4551.7,4551.2,0.1096]
[1755268098666,0.1096,4551.7,4551.3,0.4531]
[1755268098864,3.556,4551.7,4551.4,2.75978142]
[1755268099289,0.002,4552.1,4551.5,0.37177077]
[1755268099597,0.002,4552.1,4551.6,5.19699061]
[1755268099759,0.002,4552.1,4551.7,2.1969427]
[1755268100379,0.002,4552.1,4551.7,0.1096]
[1755268100580,0.002,4552.1,4551.7,2.30653578]
[1755268101164,0.002,4552.1,4552.0,0.1096]
[1755268101410,0.002,4552.1,4552.0,2.30643655]
[1755268101566,0.002,4552.1,4552.0,0.1096]
[1755268101763,0.002,4552.1,4551.8,3.0]
[1755268102190,0.4534,4552.1,4551.8,3.0]
[1755268102376,0.4514,4552.0,4551.8,3.0]
[1755268102703,0.561,4551.9,4550.8,2.19740475]
[1755268102902,0.1096,4551.9,4551.1,0.1106]
[1755268103109,0.46843205,4553.5,4553.0,2.19635405]
[1755268103312,0.002,4553.5,4553.4,2.19616111]
[1755268103515,0.002,4553.5,4553.4,6.35066231]
[1755268103718,0.002,4554.1,4553.5,3.0]
[1755268103902,0.002,4554.1,4553.6,2.19606465]
[1755268104093,0.002,4554.1,4553.7,3.0]
[1755268104288,0.002,4554.1,4553.8,2.1959682]
[1755268104492,0.002,4554.6,4554.0,2.19587176]
[1755268104679,0.002,4555.0,4554.9,2.19543788]
[1755268104877,4.0064,4556.7,4554.9,38.15267923]
[1755268105079,0.85204,4556.6,4555.0,3.0]
[1755268105391,0.85204,4556.6,4555.6,2.19505306]
[1755268105612,0.40064,4556.6,4555.0,3.0]
[1755268105796,3.13659104,4556.5,4555.1,2.19534088]
[1755268105992,0.4905,4557.2,4555.2,3.554]
[1755268106225,0.002,4557.7,4556.5,3.0]
[1755268106710,0.002,4557.7,4557.0,2.19442369]
[1755268106915,0.002,4557.7,4556.2,0.4531]
[1755268106916,0.11934,4557.6,4557.2,2.19431903]
[1755268107095,0.11934,4557.6,4556.4,0.02194715]
[1755268107303,0.11934,4557.6,4556.2,0.4531]
[1755268107495,0.11934,4557.6,4556.7,2.19453139]
[1755268107898,0.25648928,4557.5,4556.7,2.19453139]
[1755268108100,0.25648928,4557.5,4556.9,2.19445536]
[1755268108398,0.11934,4557.6,4556.9,2.19445536]
[1755268108736,0.002,4557.7,4556.7,2.19452615]
[1755268108737,2.19610064,4557.7,4556.7,2.19452615]
[1755268108933,0.0012,4557.7,4556.8,2.19451657]
[1755268109288,0.0012,4557.7,4556.9,2.19443536]
[1755268109488,0.0012,4557.7,4556.8,2.19447516]
[1755268109828,0.0012,4557.7,4556.7,2.19452709]
[1755268109986,0.28961401,4557.6,4556.7,2.19452709]
[1755268110327,0.0012,4557.7,4556.8,0.4531]
[1755268110486,0.0012,4557.7,4557.5,2.19417329]
[1755268111399,0.0012,4557.7,4556.8,0.6933]
[1755268111400,0.0012,4557.7,4556.9,3.0]
[1755268111619,0.0012,4557.7,4556.8,3.6933]
[1755268111922,0.0012,4557.7,4557.4,2.19422592]
[1755268112221,0.0012,4557.7,4557.4,2.19422566]
[1755268112597,0.0012,4557.7,4557.3,3.0]
[1755268112805,0.0012,4557.7,4557.6,2.19413726]
[1755268113137,0.0004,4557.7,4557.3,3.4531]
[1755268113290,0.0004,4557.7,4557.4,0.13154233]
[1755268113485,0.0004,4557.7,4557.5,2.19413799]
[1755268113722,0.0004,4557.7,4557.6,2.19413726]
[1755268114237,0.0004,4557.7,4557.6,5.64723726]
[1755268114616,0.0004,4557.7,4557.6,5.88743726]
[1755268114994,0.0004,4557.7,4557.6,5.64723726]
[1755268116102,0.0004,4557.7,4557.6,6.44234198]
[1755268116694,0.0004,4557.7,4557.6,6.68254198]
[1755268116915,0.0004,4557.7,4557.6,6.44234198]
[1755268117120,0.0004,4557.7,4557.6,9.99234198]
[1755268117314,0.0004,4557.7,4557.6,37.49327229]
[1755268118194,0.0004,4557.7,4557.6,9.64884198]
[1755268118420,0.0004,4557.7,4557.6,6.09884198]
[1755268119405,0.0004,4557.7,4557.6,6.58344198]
[1755268119933,0.0004,4557.7,4557.6,3.90470472]
[1755268120236,0.4621,4557.7,4557.6,5.30373726]
[1755268120532,0.002,4558.2,4558.1,2.19389657]
[1755268122733,0.002,4558.2,4557.9,2.28182892]
[1755268122734,0.4637,4558.2,4557.9,5.19398634]
[1755268123032,0.002,4558.2,4558.0,2.19394471]
[1755268123334,0.002,4558.2,4558.0,2.21588415]
[1755268123534,0.002,4558.2,4558.1,2.19389657]
[1755268123735,0.002,4558.2,4558.1,8.74289657]
[1755268124435,0.002,4558.2,4558.1,9.8365807]
[1755268124595,0.002,4558.2,4558.1,10.3211807]
[1755268124803,0.002,4558.7,4558.6,2.19365594]
[1755268125004,0.002,4558.7,4558.6,8.74165594]
[1755268125202,0.002,4558.7,4558.6,9.22625594]
[1755268125513,0.002,4558.7,4558.6,9.64045041]
[1755268125917,0.002,4558.7,4558.6,9.88075041]
[1755268126146,0.002,4558.7,4558.6,5.60785041]
[1755268126543,0.002,4558.7,4558.6,9.15585041]
[1755268126920,0.002,4558.7,4558.6,5.60785041]
[1755268127108,0.4637,4558.7,4558.6,5.19365594]
[1755268127310,0.9533,4558.7,4558.6,3.0]
[1755268128441,0.002,4558.7,4558.6,5.19365594]
[1755268128935,0.002,4558.7,4558.6,3.0]
[1755268129159,0.9533,4558.7,4558.6,3.0]
[1755268129379,0.4637,4558.7,4558.6,3.85343406]
[1755268129537,0.9533,4558.7,4558.6,5.19365594]
[1755268129860,0.002,4558.7,4558.6,5.19365594]
[1755268130446,0.002,4558.7,4558.6,5.30325594]
[1755268130828,0.002,4558.7,4558.6,8.85125594]
[1755268131131,0.002,4558.7,4558.6,6.40775485]
[1755268131875,0.4637,4558.7,4558.6,4.21409891]
[1755268132057,0.9533,4558.7,4558.6,3.0]
[1755268132364,1.0629,4558.7,4558.6,3.0008]
[1755268132884,1.52756275,4558.7,4558.6,3.0008]
[1755268133961,3.72117057,4558.7,4558.6,0.0008]
[1755268134342,1.52756275,4558.7,4558.6,0.0008]
[1755268134738,1.70533925,4558.7,4558.6,0.0008]
[1755268134942,1.70533925,4558.7,4558.6,2.19445594]
[1755268134943,1.04936552,4558.7,4558.6,2.19445594]
[1755268135178,0.46666275,4558.7,4558.6,2.30405594]
[1755268135868,0.46666275,4558.7,4558.6,0.1104]
[1755268136038,0.92836275,4558.7,4558.6,0.1104]
[1755268136374,0.92836275,4558.7,4558.6,0.0008]
[1755268136676,1.41796275,4558.7,4558.6,0.0008]
[1755268137164,0.46666275,4558.7,4558.6,0.0008]
[1755268137665,0.92836275,4558.7,4558.6,0.0008]
[1755268137831,2.00066552,4558.7,4558.6,0.0008]
[1755268138026,4.67727127,4558.7,4558.6,0.0008]
[1755268138247,4.00989477,4558.7,4558.6,0.0008]
[1755268138443,4.78826212,4558.7,4558.6,0.0008]
[1755268138642,5.16513445,4558.7,4558.6,0.0008]
[1755268138839,4.00989477,4558.7,4558.6,0.0008]
[1755268139045,1.81628695,4558.7,4557.2,2.19432281]
[1755268139245,0.58380666,4557.8,4557.3,0.1096]
[1755268139461,1.04846941,4557.7,4557.3,0.1096]
[1755268139673,1.51016941,4557.6,4557.3,0.1096]
[1755268139854,0.46466275,4557.5,4557.3,0.1096]
[1755268140044,0.58380666,4557.6,4557.4,2.19423355]
[1755268140245,0.46730528,4557.5,4557.4,2.19423355]
[1755268140440,0.46730528,4557.5,4557.4,2.64405259]
[1755268140645,0.46730528,4557.5,4557.4,5.64405259]
[1755268142234,0.46730528,4557.5,4557.4,5.19423355]
[1755268142977,0.46730528,4557.5,4557.4,3.0]
[1755268143134,1.41860528,4557.5,4556.4,0.659165]
[1755268143328,1.03860528,4557.4,4556.9,0.1096]
[1755268143558,0.58380666,4557.2,4557.0,2.19442615]
[1755268143836,1.04550666,4558.0,4557.3,0.1096]
[1755268144068,0.58380666,4557.8,4557.1,0.35635227]
[1755268144375,0.92949194,4557.7,4557.4,2.19421483]
[1755268144543,0.46779194,4557.6,4557.4,2.19421483]
[1755268144735,3.12370435,4557.5,4556.8,0.001]
[1755268144937,2.66203745,4557.4,4556.9,0.1096]
[1755268145171,2.19433108,4557.2,4556.9,0.1096]
[1755268145376,0.43819194,4557.1,4556.9,2.30406558]
[1755268145535,0.4617,4557.3,4556.9,2.30406558]
[1755268145874,0.4617,4557.2,4556.9,0.1096]
[1755268146466,0.9382,4557.1,4556.9,0.1096]
[1755268146653,0.4948,4557.1,4556.9,0.1096]
[1755268146863,0.4434,4557.0,4556.9,0.1096]
[1755268147346,0.9382,4557.0,4556.9,0.1096]
[1755268147557,3.13262615,4557.0,4556.9,0.1096]
[1755268147860,0.9382,4557.0,4556.9,0.1096]
[1755268148042,0.9382,4557.0,4556.8,0.001]
[1755268148238,3.13267431,4556.9,4556.8,0.001]
[1755268148546,0.55,4556.8,4556.3,0.001]
[1755268148748,0.55,4556.8,4555.5,0.659295]
[1755268148749,2.19490781,4556.0,4555.5,0.659295]
[1755268148973,5.85050781,4556.0,4555.4,0.001]
[1755268149171,7.33870781,4556.0,4555.4,0.001]
[1755268149671,3.24270781,4556.0,4555.4,0.001]
[1755268149844,10.78870781,4556.0,4555.4,0.001]
[1755268150250,8.099,4556.0,4555.4,0.001]
[1755268150642,4.1096,4556.0,4555.4,0.001]
[1755268150985,6.74790781,4556.0,4555.4,0.001]
[1755268151144,4.5522,4556.0,4555.4,0.001]
[1755268151345,0.1088,4556.0,4555.5,2.1951421]
[1755268151545,3.6558,4556.0,4555.4,0.001]
[1755268152160,0.1088,4556.0,4555.6,2.19509669]
[1755268152360,3.6548,4556.0,4555.5,2.19514184]
[1755268152976,3.6548,4556.0,4555.4,0.001]
[1755268153181,6.78790781,4556.0,4555.4,0.001]
[1755268153547,4.593,4556.0,4555.4,0.001]
[1755268153879,6.78790781,4556.0,4555.4,0.001]
[1755268154050,4.593,4556.0,4555.4,0.001]
[1755268154858,4.0982,4556.0,4555.4,0.001]
[1755268155082,6.78790781,4556.0,4555.4,0.001]
[1755268155285,8.23618175,4556.0,4555.4,0.001]
[1755268155580,12.23618175,4556.0,4555.4,0.001]
[1755268155783,2.74514872,4555.5,4555.4,0.001]
[1755268155986,6.40174872,4555.5,4555.4,0.001]
[1755268156283,0.55,4555.2,4553.2,2.19621046]
[1755268156445,2.19571581,4554.4,4553.3,0.1096]
[1755268156646,0.1096,4553.9,4553.2,3.02196257]
[1755268156852,3.547,4554.1,4553.6,0.1096]
[1755268157050,3.547,4554.0,4553.6,0.1096]
[1755268157356,3.547,4554.4,4554.1,2.1957907]
[1755268157584,3.547,4554.4,4554.0,2.19585113]
[1755268157898,3.547,4554.4,4553.8,0.1096]
[1755268158424,3.547,4554.4,4554.0,2.19587011]
[1755268158702,3.547,4554.5,4554.2,2.19577413]
[1755268159056,3.547,4554.5,4554.1,3.1096]
[1755268159290,3.547,4554.5,4554.1,5.30541074]
[1755268159484,0.1096,4554.8,4554.2,0.49515775]
[1755268159660,3.547,4554.6,4554.5,2.19563069]
[1755268160488,3.547,4554.6,4554.4,0.1096]
[1755268160489,0.1096,4555.1,4554.6,2.19556461]
[1755268160794,0.1096,4555.1,4554.7,2.19550885]
[1755268160795,3.547,4555.0,4554.7,2.19550885]
[1755268160968,3.547,4555.0,4554.4,0.1096]
[1755268161593,3.547,4555.0,4553.9,2.19587796]
[1755268161594,2.19548608,4554.8,4554.0,2.19684823]
[1755268161762,0.1096,4554.6,4554.0,0.1106]
[1755268162113,3.13339796,4555.4,4554.3,2.19571751]
[1755268162300,0.1096,4555.0,4554.3,0.1096]
[1755268162588,3.547,4555.3,4554.0,0.001]
[1755268162589,0.1096,4554.5,4554.0,0.001]
[1755268162791,3.547,4554.4,4554.0,0.001]
[1755268162963,3.9904,4554.4,4554.0,2.19686538]
[1755268163156,3.9904,4554.4,4554.0,0.001]
[1755268163371,3.547,4554.4,4554.0,0.001]
[1755268163783,3.547,4554.4,4554.1,2.19581154]
[1755268164416,3.547,4554.4,4554.0,2.19685841]
[1755268164590,3.547,4554.4,4554.0,0.001]
[1755268164914,3.547,4554.4,4554.1,2.19581898]
[1755268165797,3.547,4554.4,4554.0,2.19686167]
[1755268166006,0.4434,4554.3,4554.0,0.001]
[1755268166417,0.9382,4554.2,4554.0,0.001]
[1755268166823,0.1096,4554.2,4554.0,0.001]
[1755268167130,0.9382,4554.1,4554.0,0.001]
[1755268167285,3.68402354,4554.1,4554.0,0.001]
[1755268167485,4.45465189,4554.1,4554.0,0.001]
[1755268167891,8.45465189,4554.1,4554.0,0.001]
[1755268169081,7.68402354,4554.1,4554.0,0.001]
[1755268169280,11.23102354,4554.1,4554.0,0.001]
[1755268169484,10.68102354,4554.1,4554.0,0.001]
[1755268170131,10.18622354,4554.1,4554.0,0.001]
[1755268170499,4.4434,4554.1,4554.0,0.001]
[1755268170796,4.71143996,4554.1,4554.0,0.001]
[1755268170995,8.25843996,4554.1,4554.0,0.001]
[1755268171188,7.547,4554.1,4554.0,0.001]
[1755268171391,4.0,4554.1,4554.0,0.001]
[1755268171590,7.9904,4554.1,4554.0,0.001]
[1755268171792,10.68102354,4554.1,4554.0,0.001]
[1755268172098,11.23102354,4554.1,4554.0,0.0018]
[1755268172304,12.5296614,4554.1,4554.0,0.0018]
[1755268174897,8.9826614,4554.1,4554.0,0.0018]
[1755268175098,12.6392614,4554.1,4554.0,0.0018]
[1755268175699,9.0922614,4554.1,4554.0,0.0018]
[1755268175896,12.6392614,4554.1,4554.0,0.0018]
[1755268178405,19.6792614,4554.1,4554.0,1e-08]
[1755268178710,2.74606465,4553.6,4553.5,1e-08]
[1755268178909,13.44266465,4553.6,4553.5,1e-08]
[1755268179140,14.8556636,4553.6,4553.5,1e-08]
[1755268179509,11.3086636,4553.6,4553.5,1e-08]
[1755268179709,14.8546636,4553.6,4553.5,1e-08]
[1755268179905,20.95972967,4553.6,4553.5,1e-08]
[1755268181316,24.16274724,4553.6,4553.5,1e-08]
[1755268181659,2.19703728,4551.6,4550.8,0.4568]
[1755268181822,2.19703728,4551.6,4550.9,5.19732638]
[1755268181823,2.19703799,4551.6,4550.9,5.19732638]
[1755268182015,0.1096,4551.4,4551.2,0.4568]
[1755268182216,0.1096,4551.4,4550.7,0.1106]
[1755268182535,0.1096,4551.4,4551.1,0.4578]
[1755268182937,3.546,4551.3,4551.2,0.4568]
[1755268183714,3.547,4551.3,4551.2,0.4568]
[1755268184149,3.546,4551.3,4551.2,0.4568]
[1755268184938,0.1096,4551.8,4551.2,0.8107]
[1755268185140,3.546,4551.7,4551.3,2.19717443]
[1755268185339,3.546,4551.7,4551.2,0.8107]
[1755268185340,3.546,4551.7,4551.4,0.4568]
[1755268185638,0.1096,4551.5,4551.1,0.001]
[1755268185840,3.546,4551.4,4551.1,0.001]
[1755268186059,3.546,4551.4,4551.1,0.4578]
[1755268186780,3.546,4551.4,4551.1,2.19827075]
[1755268186975,3.546,4551.4,4551.2,2.65400176]
[1755268187182,3.546,4551.4,4551.1,0.001]
[1755268187386,3.546,4551.4,4551.2,0.4568]
[1755268187682,0.5273,4552.8,4551.7,2.19696105]
[1755268187887,4.0,4551.8,4551.7,2.19698134]
[1755268188181,4.0,4551.8,4551.7,2.44128134]
[1755268188367,7.546,4551.8,4551.7,0.1096]
[1755268188690,3.546,4551.8,4551.1,0.001]
[1755268188982,3.546,4551.8,4551.1,0.1106]
[1755268189158,3.546,4551.8,4551.4,2.19711356]
[1755268189472,3.546,4551.8,4551.1,0.1106]
[1755268189671,3.546,4551.8,4551.2,2.19722271]
[1755268190098,4.13124432,4551.8,4551.1,0.1106]
[1755268190442,2.19703286,4551.6,4551.1,0.001]
[1755268190643,2.19714056,4551.4,4551.1,0.001]
[1755268190948,3.546,4551.3,4551.1,0.001]
[1755268193646,2.64952271,4551.2,4551.1,0.001]
[1755268193878,3.25172271,4551.2,4551.1,0.001]
[1755268194407,7.25172271,4551.2,4551.1,0.001]
[1755268195487,6.75912271,4551.2,4551.1,0.001]
[1755268195779,10.30412271,4551.2,4551.1,0.001]
[1755268195997,11.59080454,4551.2,4551.1,0.001]
[1755268196350,5.39628183,4551.2,4551.1,0.001]
[1755268196556,7.6546,4551.2,4551.1,0.001]
[1755268197382,9.85182271,4551.2,4551.1,0.001]
[1755268197561,7.6546,4551.2,4551.1,0.001]
[1755268197756,4.1096,4551.2,4551.1,0.001]
[1755268197958,7.6546,4551.2,4551.1,0.001]
[1755268198184,4.1096,4551.2,4551.1,0.001]
[1755268198359,3.545,4551.2,4551.1,0.4578]
[1755268198559,3.545,4551.2,4551.1,0.001]
[1755268198950,6.19452271,4551.2,4551.1,0.001]
[1755268199157,6.30412271,4551.2,4551.1,0.001]
[1755268199357,7.64684811,4551.2,4551.1,0.001]
[1755268199566,7.15424811,4551.2,4551.1,0.001]
[1755268200084,7.64684811,4551.2,4551.1,0.001]